fUSD/lending_fUSD_20251120
["ID","MTS","AMOUNT","RATE_DAILY","PERIOD"]
[394494836,1763632314580,-350.0,0.00031233,5]
[394494837,1763632314590,-239.67449913,0.00031282,2]
[394494838,1763632314599,-6740.0,0.00031332,3]
[394494839,1763632314609,-2333.41,0.000314,2]
[394494840,1763632314619,-195.19562507,0.000315,2]
[394494841,1763632314628,-150.0,0.000315,2]
[394494842,1763632314638,-200.0,0.00031507,2]
[394494843,1763632314649,-190.3,0.00031644,91]
[394494844,1763632314658,-450.0,0.00031781,5]
[394494845,1763632314668,-200.0,0.00031822,2]
[394494846,1763632314678,-162700.24713949,0.000319,2]
[394494847,1763632314689,-5670.43903473,0.00032,5]
[394494848,1763632314698,-3422.56719444,0.00032,2]
[394494849,1763632314708,-500.0,0.00032,14]
[394494850,1763632314717,-501.0,0.00032,30]
[394494851,1763632314727,-660.58,0.0003202,30]
[394494852,1763632314737,-1156.91,0.000321,7]
[394494853,1763632314746,-674.79,0.000321,30]
[394494854,1763632314755,-200.0,0.0003214,2]
[394494855,1763632314764,-200.0,0.00032214,2]
[394494856,1763632314774,-884.09373685,0.000323,2]
[394494857,1763632314787,-354.87578313,0.00032329,5]
[394494858,1763632314796,-200.0,0.00032462,2]
[394494859,1763632314805,-200.0,0.00032536,2]
[394494860,1763632314814,-575.0,0.00032611,2]
[394494861,1763632314824,-609.0,0.00032611,2]
[394494862,1763632314835,-1319.0,0.00032611,2]
[394494863,1763632314846,-1600.0,0.00032611,2]
[394494864,1763632314855,-822.0,0.00032611,2]
[394494865,1763632314866,-907.0,0.00032611,2]
[394494866,1763632314877,-1191.0,0.00032611,2]
[394494867,1763632314887,-794.0,0.00032611,2]
[394494868,1763632314896,-1256.0,0.00032611,2]
[394494869,1763632314906,-705.0,0.00032611,2]
[394494870,1763632314916,-1605.0,0.00032611,2]
[394494871,1763632314927,-200.0,0.00032786,2]
[394494872,1763632314936,-4774.00981472,0.000328,2]
[394494873,1763632314946,-200.0,0.00032862,2]
[394494874,1763632314955,-151.0,0.00032876,7]
[394494875,1763632314965,-340.84,0.00032877,2]
[394494876,1763632314976,-738.71,0.00032877,2]
[394494877,1763632315164,-404.24214339,0.00032877,120]
[394494878,1763632315175,-500.0,0.00032877,2]
[394494879,1763632315185,-500.0,0.00032877,7]
[394494880,1763632315195,-500.0,0.00032877,7]
[394494881,1763632315205,-500.0,0.00032877,7]
[394494882,1763632315215,-196.34647661,0.00032877,7]
[394494883,1763632315225,-500.0,0.00032904,2]
[394494884,1763632315234,-500.0,0.00032932,2]
[394494885,1763632315244,-500.0,0.00032959,2]
[394494886,1763632315255,-500.0,0.00032987,2]
[394494887,1763632315264,-50982.5856033,0.00033,2]
[394494888,1763632315274,-1540.58622792,0.00033,2]
[394494889,1763632315285,-1061.95472014,0.00033,2]
[394494890,1763632315295,-151.82555808,0.00033,2]
[394494891,1763632315305,-2333.41,0.00033,2]
[394494892,1763632315316,-164.0,0.00033,14]
[394494893,1763632315326,-166.0,0.00033,14]
[394494894,1763632315336,-500.0,0.00033014,2]
[394494895,1763632315346,-152.0,0.00033033,3]
[394494896,1763632315355,-500.0,0.00033041,2]
[394494897,1763632315365,-500.0,0.00033069,2]
[394494898,1763632315375,-4427.0,0.00033072,2]
[394494899,1763632315385,-500.0,0.00033096,2]
[394494900,1763632315394,-500.0,0.00033124,2]
[394494901,1763632315403,-488.0,0.0003315,7]
[394494902,1763632315413,-166.0,0.00033151,30]
[394494903,1763632315422,-164.0,0.00033151,30]
[394494904,1763632315432,-500.0,0.00033151,2]
[394494905,1763632315442,-530.99,0.00033165,2]
[394494906,1763632315452,-430.85374212,0.00033178,2]
[394494907,1763632315461,-200.0,0.0003319,2]
[394494908,1763632315471,-2000.0,0.000334,2]
[394494909,1763632315480,-571.0,0.00033431,120]
[394494910,1763632315489,-2000.0,0.0003349,120]
[394494911,1763632315499,-1197.77820256,0.000335,2]
[394494912,1763632315509,-200.0,0.00033522,2]
[394494913,1763632315519,-167.0,0.00033539,120]
[394494914,1763632315528,-1156.91,0.000336,14]
[394494915,1763632315538,-674.79,0.000336,30]
[394494916,1763632315547,-6951.68,0.000336,14]
[394494917,1763632315557,-200.0,0.00033615,120]
[394494918,1763632315567,-1141.0,0.00033722,120]
[394494919,1763632315577,-226.0,0.0003377,120]
[394494920,1763632315587,-453.0,0.00033825,120]
[394494921,1763632315597,-488.0,0.00033972,8]
[394494922,1763632315607,-976.96,0.00034,2]
[394494923,1763632315616,-300.0,0.00034,120]
[394494924,1763632315626,-152.0,0.00034065,4]
[394494925,1763632315636,-1711.15515212,0.0003449,2]
[394494926,1763632315646,-1441.45132727,0.000345,14]
[394494927,1763632315656,-166.0,0.00034521,30]
[394494928,1763632315665,-164.0,0.00034521,30]
[394494929,1763632315675,-660.58,0.00034525,30]
[394494930,1763632315685,-3313.50628294,0.00034546,2]
[394494931,1763632315694,-1328.0,0.000346,5]
[394494932,1763632315704,-989.3,0.00034751,30]
[394494933,1763632315714,-488.0,0.00034794,9]
[394494934,1763632315724,-2333.41,0.000348,2]
[394494935,1763632315733,-2000.0,0.0003499,120]
[394494936,1763632315743,-1129.51381087,0.00035,60]
[394494937,1763632315752,-152.0,0.00035096,5]
[394494938,1763632315762,-571.0,0.00035102,120]
[394494939,1763632315771,-171.0,0.00035176,120]
[394494940,1763632315783,-167.0,0.00035216,120]
[394494941,1763632315794,-200.0,0.00035295,120]
[394494942,1763632315804,-1141.0,0.00035408,120]
[394494943,1763632315814,-226.0,0.00035458,120]
[394494944,1763632315824,-29617.18541309,0.000355,7]
[394494945,1763632315834,-453.0,0.00035516,120]
[394494946,1763632315844,-575.0,0.00035611,2]
[394494947,1763632315855,-609.0,0.00035611,2]
[394494948,1763632315866,-1319.0,0.00035611,2]
[394494949,1763632315875,-822.0,0.00035611,2]
[394494950,1763632315885,-907.0,0.00035611,2]
[394494951,1763632315895,-1191.0,0.00035611,2]
[394494952,1763632315905,-794.0,0.00035611,2]
[394494953,1763632315914,-1256.0,0.00035611,2]
[394494954,1763632315923,-705.0,0.00035611,2]
[394494955,1763632315933,-1605.0,0.00035611,2]
[394494956,1763632315943,-514.53731647,0.00035616,10]
[394494957,1763632315953,-629.0,0.00035616,120]
[394494958,1763632315962,-738.71,0.00035616,2]
[394494959,1763632315971,-629.0,0.00035643,120]
[394494960,1763632315981,-629.0,0.00035671,120]
[394494961,1763632315991,-629.0,0.00035698,120]
[394494962,1763632316001,-629.0,0.00035726,120]
[394494963,1763632316010,-629.0,0.00035753,120]
[394494964,1763632316021,-629.0,0.0003578,120]
[394494965,1763632316030,-151.0,0.000358,7]
[394494966,1763632316040,-629.0,0.00035808,120]
[394494967,1763632316049,-629.0,0.00035835,120]
[394494968,1763632316058,-629.0,0.00035863,120]
[394494969,1763632316069,-617.91613,0.00035888,30]
[394494970,1763632316078,-629.0,0.0003589,120]
[394494971,1763632316088,-629.0,0.00035917,120]
[394494972,1763632316097,-629.0,0.00035945,120]
[394494973,1763632316107,-629.0,0.00035972,120]
[394494974,1763632316117,-629.0,0.00036,120]
[394494975,1763632316127,-1014.96,0.00036,2]
[394494976,1763632316137,-231831.77491602,0.00036,2]
[394494977,1763632316147,-206.45992662,0.00036,2]
[394494978,1763632316156,-10731.61246999,0.00036,2]
[394494979,1763632316165,-1156.91,0.00036,14]
[394494980,1763632316174,-674.79,0.00036,30]
[394494981,1763632316184,-300.0,0.00036,120]
[394494982,1763632316194,-629.0,0.00036027,120]
[394494983,1763632316203,-629.0,0.00036054,120]
[394494984,1763632316214,-2503.8,0.00036057,2]
[394494985,1763632316224,-478.75,0.00036074,2]
[394494986,1763632316234,-629.0,0.00036082,120]
[394494987,1763632316244,-617.91613,0.00036088,30]
[394494988,1763632316253,-629.0,0.00036109,120]
[394494989,1763632316263,-152.0,0.00036128,6]
[394494990,1763632316273,-629.0,0.00036137,120]
[394494991,1763632316283,-629.0,0.00036164,120]
[394494992,1763632316293,-1474.46,0.00036188,2]
[394494993,1763632316302,-629.0,0.00036191,120]
[394494994,1763632316312,-15685.1621062,0.000362,7]
[394494995,1763632316322,-629.0,0.00036219,120]
[394494996,1763632316332,-633.25878194,0.00036246,120]
[394494997,1763632316341,-171.0,0.00036247,30]
[394494998,1763632316351,-166.0,0.00036247,30]
[394494999,1763632316361,-617.91613,0.00036288,30]
[394495000,1763632316370,-6951.68,0.000363,14]
[394495001,1763632316380,-1641.16,0.00036313,2]
[394495002,1763632316390,-223.65467123,0.00036359,120]
[394495003,1763632316400,-223.96854226,0.00036359,120]
[394495004,1763632316410,-228.79,0.00036389,2]
[394495005,1763632316420,-2503.79,0.00036423,2]
[394495006,1763632316429,-172.0,0.00036444,120]
[394495007,1763632316439,-617.91613,0.00036488,30]
[394495008,1763632316449,-2000.0,0.0003649,120]
[394495009,1763632316458,-617.91613,0.00036688,30]
[394495010,1763632316468,-1014.96,0.0003672,2]
[394495011,1763632316478,-21679.73,0.00036779,2]
[394495012,1763632316487,-1931.31164986,0.000368,2]
[394495013,1763632316497,-2523.18,0.00036854,2]
[394495014,1763632316506,-571.0,0.00036857,120]
[394495015,1763632316516,-617.91613,0.00036888,30]
[394495016,1763632316527,-13959.14821912,0.0003691,2]
[394495017,1763632316537,-171.0,0.00036935,120]
[394495018,1763632316546,-167.0,0.00036977,120]
[394495019,1763632316558,-500.0,0.00036986,15]
[394495020,1763632316568,-500.0,0.00036986,15]
[394495021,1763632316577,-500.0,0.00036986,15]
[394495022,1763632316587,-500.0,0.00036986,15]
[394495023,1763632316597,-500.0,0.00036986,15]
[394495024,1763632316607,-500.0,0.00036986,15]
[394495025,1763632316616,-500.0,0.00036986,15]
[394495026,1763632316627,-500.0,0.00036986,15]
[394495027,1763632316637,-500.0,0.00036986,15]
[394495028,1763632316646,-500.0,0.00036986,15]
[394495029,1763632316655,-500.0,0.00036986,15]
[394495030,1763632316665,-500.0,0.00036986,15]
[394495031,1763632316675,-500.0,0.00036986,15]
[394495032,1763632316685,-500.0,0.00036986,15]
[394495033,1763632316694,-500.0,0.00036986,15]
[394495034,1763632316703,-500.0,0.00036986,15]
[394495035,1763632316712,-500.0,0.00036986,15]
[394495036,1763632316721,-500.0,0.00036986,15]
[394495037,1763632316730,-500.0,0.00036986,15]
[394495038,1763632316740,-500.0,0.00036986,15]
[394495039,1763632316749,-500.0,0.00036986,15]
[394495040,1763632316759,-500.0,0.00036986,15]
[394495041,1763632316768,-500.0,0.00036986,15]
[394495042,1763632316781,-500.0,0.00036986,15]
[394495043,1763632316791,-500.0,0.00036986,15]
[394495044,1763632316800,-500.0,0.00036986,15]
[394495045,1763632316810,-500.0,0.00036986,15]
[394495046,1763632316823,-500.0,0.00036986,15]
[394495047,1763632316833,-500.0,0.00036986,15]
[394495048,1763632316845,-500.0,0.00036986,15]
[394495049,1763632316856,-500.0,0.00036986,15]
[394495050,1763632316871,-500.0,0.00036986,15]
[394495051,1763632316883,-500.0,0.00036986,15]
[394495052,1763632316894,-500.0,0.00036986,15]
[394495053,1763632316905,-500.0,0.00036986,15]
[394495054,1763632316917,-500.0,0.00036986,15]
[394495055,1763632316927,-500.0,0.00036986,15]
[394495056,1763632316938,-500.0,0.00036986,15]
[394495057,1763632316948,-500.0,0.00036986,15]
[394495058,1763632316958,-500.0,0.00036986,15]
[394495059,1763632316968,-500.0,0.00036986,15]
[394495060,1763632316977,-500.0,0.00036986,15]
[394495061,1763632316987,-500.0,0.00036986,15]
[394495062,1763632316996,-500.0,0.00036986,15]
[394495063,1763632317007,-500.0,0.00036986,15]
[394495064,1763632317016,-643.1294415,0.00036986,15]
[394495065,1763632317026,-500.0,0.00036986,15]
[394495066,1763632317036,-500.0,0.00036986,15]
[394495067,1763632317045,-500.0,0.00036986,15]
[394495068,1763632317055,-679.01,0.00036986,30]
[394495069,1763632317066,-5041.0,0.00037,2]
[394495070,1763632317076,-2333.41,0.00037,2]
[394495071,1763632317086,-30187.22273461,0.00037,5]
[394495072,1763632317096,-778.00132139,0.00037,2]
[394495073,1763632317107,-74480.84987434,0.00037,2]
[394495074,1763632317118,-660.58,0.0003703,60]
[394495075,1763632317128,-478.75,0.00037033,2]
[394495076,1763632317138,-478.75,0.00037033,2]
[394495077,1763632317148,-478.75,0.00037033,2]
[394495078,1763632317158,-950.54,0.00037033,2]
[394495079,1763632317167,-770.94,0.00037033,2]
[394495080,1763632317177,-200.0,0.0003706,120]
[394495081,1763632317186,-617.91613,0.00037088,30]
[394495082,1763632317195,-2000.0,0.000371,2]
[394495083,1763632317204,-152.0,0.00037159,7]
[394495084,1763632317213,-1141.0,0.00037178,120]
[394495085,1763632317223,-7000.0,0.000372,20]
[394495086,1763632317233,-500.0,0.00037202,30]
[394495087,1763632317242,-500.0,0.00037202,30]
[394495088,1763632317252,-500.0,0.00037202,30]
[394495089,1763632317263,-500.0,0.00037202,30]
[394495090,1763632317273,-500.0,0.00037202,30]
[394495091,1763632317283,-500.0,0.00037202,30]
[394495092,1763632317293,-500.0,0.00037202,30]
[394495093,1763632317303,-500.0,0.00037202,30]
[394495094,1763632317313,-500.0,0.00037202,30]
[394495095,1763632317323,-500.0,0.00037202,30]
[394495096,1763632317332,-500.0,0.00037202,30]
[394495097,1763632317341,-500.0,0.00037202,30]
[394495098,1763632317350,-500.0,0.00037202,30]
[394495099,1763632317360,-500.0,0.00037202,30]
[394495100,1763632317370,-500.0,0.00037202,30]
[394495101,1763632317380,-500.0,0.00037202,30]
[394495102,1763632317389,-500.0,0.00037202,30]
[394495103,1763632317399,-500.0,0.00037202,30]
[394495104,1763632317408,-500.0,0.00037202,30]
[394495105,1763632317418,-500.0,0.00037202,30]
[394495106,1763632317427,-500.0,0.00037202,30]
[394495107,1763632317436,-500.0,0.00037202,30]
[394495108,1763632317446,-500.0,0.00037202,30]
[394495109,1763632317456,-927.00922242,0.00037202,30]
[394495110,1763632317466,-500.0,0.00037202,30]
[394495111,1763632317475,-500.0,0.00037202,30]
[394495112,1763632317485,-760.05745376,0.00037202,30]
[394495113,1763632317495,-500.0,0.00037202,30]
[394495114,1763632317506,-500.0,0.00037202,30]
[394495115,1763632317515,-919.72431635,0.00037202,30]
[394495116,1763632317526,-500.0,0.00037202,30]
[394495117,1763632317535,-500.0,0.00037202,30]
[394495118,1763632317545,-500.0,0.00037202,30]
[394495119,1763632317555,-500.0,0.00037202,30]
[394495120,1763632317565,-500.0,0.00037202,30]
[394495121,1763632317575,-500.0,0.00037202,30]
[394495122,1763632317585,-500.0,0.00037202,30]
[394495123,1763632317594,-500.0,0.00037202,30]
[394495124,1763632317604,-1300.0,0.00037202,30]
[394495125,1763632317614,-500.0,0.00037202,30]
[394495126,1763632317623,-649.17069745,0.00037202,30]
[394495127,1763632317634,-1300.0,0.00037202,30]
[394495128,1763632317644,-500.0,0.00037202,30]
[394495129,1763632317653,-1300.0,0.00037202,30]
[394495130,1763632317663,-1300.0,0.00037202,30]
[394495131,1763632317673,-500.0,0.00037202,30]
[394495132,1763632317682,-1300.0,0.00037202,30]
[394495133,1763632317692,-500.0,0.00037202,30]
[394495134,1763632317701,-1300.0,0.00037202,30]
[394495135,1763632317711,-500.0,0.00037202,30]
[394495136,1763632317721,-1300.0,0.00037202,30]
[394495137,1763632317731,-500.0,0.00037202,30]
[394495138,1763632317740,-500.0,0.00037202,30]
[394495139,1763632317750,-1300.0,0.00037202,30]
[394495140,1763632317760,-500.0,0.00037202,30]
[394495141,1763632317770,-500.0,0.00037202,30]
[394495142,1763632317780,-1300.0,0.00037202,30]
[394495143,1763632317794,-500.0,0.00037202,30]
[394495144,1763632317804,-500.0,0.00037202,30]
[394495145,1763632317813,-1300.0,0.00037202,30]
[394495146,1763632317824,-500.0,0.00037202,30]
[394495147,1763632317838,-500.0,0.00037202,30]
[394495148,1763632317848,-1300.0,0.00037202,30]
[394495149,1763632317859,-500.0,0.00037202,30]
[394495150,1763632317868,-500.0,0.00037202,30]
[394495151,1763632318051,-1300.0,0.00037202,30]
[394495152,1763632318061,-500.0,0.00037202,30]
[394495153,1763632318073,-500.0,0.00037202,30]
[394495154,1763632318087,-1300.0,0.00037202,30]
[394495155,1763632318098,-500.0,0.00037202,30]
[394495156,1763632318108,-500.0,0.00037202,30]
[394495157,1763632318118,-600.0,0.00037202,30]
[394495158,1763632318127,-1300.0,0.00037202,30]
[394495159,1763632318137,-500.0,0.00037202,30]
[394495160,1763632318148,-500.0,0.00037202,30]
[394495161,1763632318158,-600.0,0.00037202,30]
[394495162,1763632318168,-500.0,0.00037202,30]
[394495163,1763632318179,-500.0,0.00037202,30]
[394495164,1763632318189,-1300.0,0.00037202,30]
[394495165,1763632318199,-600.0,0.00037202,30]
[394495166,1763632318209,-500.0,0.00037202,30]
[394495167,1763632318219,-1300.0,0.00037202,30]
[394495168,1763632318228,-600.0,0.00037202,30]
[394495169,1763632318238,-500.0,0.00037202,30]
[394495170,1763632318248,-1300.0,0.00037202,30]
[394495171,1763632318259,-600.0,0.00037202,30]
[394495172,1763632318270,-500.0,0.00037202,30]
[394495173,1763632318280,-500.0,0.00037202,30]
[394495174,1763632318290,-1300.0,0.00037202,30]
[394495175,1763632318299,-600.0,0.00037202,30]
[394495176,1763632318310,-500.0,0.00037202,30]
[394495177,1763632318320,-802.3781414,0.00037202,30]
[394495178,1763632318330,-500.0,0.00037202,30]
[394495179,1763632318340,-1300.0,0.00037202,30]
[394495180,1763632318349,-600.0,0.00037202,30]
[394495181,1763632318359,-744.34548374,0.00037202,30]
[394495182,1763632318368,-500.0,0.00037202,30]
[394495183,1763632318377,-600.0,0.00037202,30]
[394495184,1763632318386,-1300.0,0.00037202,30]
[394495185,1763632318395,-532.21699065,0.00037202,30]
[394495186,1763632318405,-600.0,0.00037202,30]
[394495187,1763632318414,-1300.0,0.00037202,30]
[394495188,1763632318423,-1300.0,0.00037202,30]
[394495189,1763632318433,-600.0,0.00037202,30]
[394495190,1763632318443,-500.0,0.00037202,30]
[394495191,1763632318453,-1300.0,0.00037202,30]
[394495192,1763632318462,-600.0,0.00037202,30]
[394495193,1763632318471,-500.0,0.00037202,30]
[394495194,1763632318481,-500.0,0.00037202,30]
[394495195,1763632318490,-500.0,0.00037202,30]
[394495196,1763632318501,-1300.0,0.00037202,30]
[394495197,1763632318510,-600.0,0.00037202,30]
[394495198,1763632318519,-500.0,0.00037202,30]
[394495199,1763632318529,-985.72527835,0.00037202,30]
[394495200,1763632318538,-1300.0,0.00037202,30]
[394495201,1763632318548,-500.0,0.00037202,30]
[394495202,1763632318558,-600.0,0.00037202,30]
[394495203,1763632318568,-500.0,0.00037202,30]
[394495204,1763632318577,-500.0,0.00037202,30]
[394495205,1763632318587,-1300.0,0.00037202,30]
[394495206,1763632318596,-500.0,0.00037202,30]
[394495207,1763632318606,-526.57482815,0.00037202,30]
[394495208,1763632318615,-600.0,0.00037202,30]
[394495209,1763632318625,-1300.0,0.00037202,30]
[394495210,1763632318635,-600.0,0.00037202,30]
[394495211,1763632318644,-500.0,0.00037202,30]
[394495212,1763632318654,-600.0,0.00037202,30]
[394495213,1763632318663,-2100.0,0.00037202,30]
[394495214,1763632318673,-922.84669334,0.00037202,30]
[394495215,1763632318683,-500.0,0.00037202,30]
[394495216,1763632318693,-600.0,0.00037202,30]
[394495217,1763632318702,-600.0,0.00037202,30]
[394495218,1763632318712,-500.0,0.00037202,30]
[394495219,1763632318722,-600.0,0.00037202,30]
[394495220,1763632318732,-600.0,0.00037202,30]
[394495221,1763632318742,-500.0,0.00037202,30]
[394495222,1763632318751,-600.0,0.00037202,30]
[394495223,1763632318761,-600.0,0.00037202,30]
[394495224,1763632318771,-600.0,0.00037202,30]
[394495225,1763632318780,-500.0,0.00037202,30]
[394495226,1763632318795,-600.0,0.00037202,30]
[394495227,1763632318812,-600.0,0.00037202,30]
[394495228,1763632318823,-500.0,0.00037202,30]
[394495229,1763632318834,-600.0,0.00037202,30]
[394495230,1763632318843,-600.0,0.00037202,30]
[394495231,1763632318853,-649.19253436,0.00037202,30]
[394495232,1763632318863,-600.0,0.00037202,30]
[394495233,1763632318873,-600.0,0.00037202,30]
[394495234,1763632318882,-600.0,0.00037202,30]
[394495235,1763632318892,-600.0,0.00037202,30]
[394495236,1763632318902,-600.0,0.00037202,30]
[394495237,1763632318912,-600.0,0.00037202,30]
[394495238,1763632318922,-600.0,0.00037202,30]
[394495239,1763632318932,-600.0,0.00037202,30]
[394495240,1763632318941,-600.0,0.00037202,30]
[394495241,1763632318950,-600.0,0.00037202,30]
[394495242,1763632318960,-648.6796771,0.00037202,30]
[394495243,1763632318970,-600.0,0.00037202,30]
[394495244,1763632318980,-600.0,0.00037202,30]
[394495245,1763632318989,-600.0,0.00037202,30]
[394495246,1763632318999,-600.0,0.00037202,30]
[394495247,1763632319010,-600.0,0.00037202,30]
[394495248,1763632319019,-600.0,0.00037202,30]
[394495249,1763632319029,-600.0,0.00037202,30]
[394495250,1763632319038,-600.0,0.00037202,30]
[394495251,1763632319048,-600.0,0.00037202,30]
[394495252,1763632319058,-600.0,0.00037202,30]
[394495253,1763632319068,-600.0,0.00037202,30]
[394495254,1763632319078,-600.0,0.00037202,30]
[394495255,1763632319088,-600.0,0.00037202,30]
[394495256,1763632319097,-600.0,0.00037202,30]
[394495257,1763632319107,-713.43909521,0.00037202,30]
[394495258,1763632319117,-226.0,0.00037231,120]
[394495259,1763632319126,-617.91613,0.00037288,30]
[394495260,1763632319136,-453.0,0.00037292,120]
[394495261,1763632319145,-1014.96,0.0003744,2]
[394495262,1763632319155,-617.91613,0.00037488,30]
[394495263,1763632319165,-239.67449913,0.00037501,2]
[394495264,1763632319174,-617.91613,0.00037688,30]
[394495265,1763632319183,-500.0,0.00037842,30]
[394495266,1763632319192,-571.04350417,0.00037842,30]
[394495267,1763632319202,-500.0,0.00037842,30]
[394495268,1763632319212,-906.53233544,0.00037842,30]
[394495269,1763632319221,-905.52440337,0.00037842,30]
[394495270,1763632319231,-945.20618373,0.00037842,30]
[394495271,1763632319241,-968.37313835,0.00037842,30]
[394495272,1763632319250,-614.31737901,0.00037842,30]
[394495273,1763632319259,-500.0,0.00037842,30]
[394495274,1763632319269,-500.0,0.00037842,30]
[394495275,1763632319278,-500.0,0.00037842,30]
[394495276,1763632319288,-571.04350417,0.00037842,30]
[394495277,1763632319298,-614.31737901,0.00037842,30]
[394495278,1763632319308,-500.0,0.00037842,30]
[394495279,1763632319331,-500.0,0.00037842,30]
[394495280,1763632319352,-500.0,0.00037842,30]
[394495281,1763632319373,-864.81166041,0.00037842,30]
[394495282,1763632319396,-614.31737901,0.00037842,30]
[394495283,1763632319416,-500.0,0.00037842,30]
[394495284,1763632319436,-500.0,0.00037842,30]
[394495285,1763632319458,-500.0,0.00037842,30]
[394495286,1763632319479,-830.0243306,0.00037842,30]
[394495287,1763632319502,-500.0,0.00037842,30]
[394495288,1763632319522,-500.0,0.00037842,30]
[394495289,1763632319542,-500.0,0.00037842,30]
[394495290,1763632319563,-500.0,0.00037842,30]
[394495291,1763632319579,-648.04232761,0.00037842,30]
[394495292,1763632319597,-500.0,0.00037842,30]
[394495293,1763632319616,-500.0,0.00037842,30]
[394495294,1763632319632,-530.17590155,0.00037842,30]
[394495295,1763632319649,-150.3089949,0.0003787,120]
[394495296,1763632319664,-199.68075845,0.0003788,2]
[394495297,1763632319678,-617.91613,0.00037888,30]
[394495298,1763632319694,-674.79,0.000379,30]
[394495299,1763632319709,-6951.68,0.000379,14]
[394495300,1763632319726,-49746.95010265,0.0003797,2]
[394495301,1763632319746,-2089.54719,0.0003799,120]
[394495302,1763632319764,-204598.5034726,0.00038,2]
[394495303,1763632319782,-2000.0,0.00038,2]
[394495304,1763632319800,-179948.78958085,0.00038,2]
[394495305,1763632319816,-97374.15634242,0.00038,2]
[394495306,1763632319832,-500.0,0.00038,28]
[394495307,1763632319846,-500.0,0.00038,21]
[394495308,1763632319863,-1156.91,0.00038,14]
[394495309,1763632319878,-279.27989529,0.00038,120]
[394495310,1763632319893,-300.0,0.00038,120]
[394495311,1763632319909,-774.0,0.00038,30]
[394495312,1763632319923,-617.91613,0.00038088,30]
[394495313,1763632319936,-150.0,0.00038106,2]
[394495314,1763632319949,-300.0,0.00038106,2]
[394495315,1763632319962,-930.52,0.00038106,2]
[394495316,1763632319973,-177.5,0.00038106,2]
[394495317,1763632319983,-831.31,0.00038106,2]
[394495318,1763632319997,-150.0,0.00038106,2]
[394495319,1763632320011,-177.5,0.00038106,2]
[394495320,1763632320026,-177.5,0.00038106,2]
[394495321,1763632320039,-150.0,0.00038106,2]
[394495322,1763632320052,-177.5,0.00038106,2]
[394495323,1763632320064,-150.0,0.00038106,2]
[394495324,1763632320079,-177.5,0.00038106,2]
[394495325,1763632320090,-150.0,0.00038106,2]
[394495326,1763632320102,-339.2,0.00038106,2]
[394495327,1763632320115,-358.96,0.00038106,2]
[394495328,1763632320129,-152.22,0.00038106,2]
[394495329,1763632320143,-150.0,0.00038107,2]
[394495330,1763632320159,-150.0,0.00038107,2]
[394495331,1763632320173,-300.0,0.00038129,2]
[394495332,1763632320189,-177.5,0.00038129,2]
[394495333,1763632320204,-1210.38,0.00038129,2]
[394495334,1763632320218,-1210.38,0.00038129,2]
[394495335,1763632320233,-842.95,0.00038129,2]